[Event "December 19 Early 2023"]
[Site "https://www.chess.com"]
[Date "2023.12.19"]
[Round "2"]
[White "Korobov, Anton"]
[Black "Sadykov, Ramil"]
[Result "1-0"]
[Board "20"]
[TimeControl "180+1"]
[WhiteFideId "14105730"]
[BlackFideId "24113590"]
[WhiteElo "2649"]
[BlackElo "2245"]
[WhiteTeam "UKR"]
[BlackTeam "FID"]
[WhiteClock "0:00:58"]
[BlackClock "0:00:01"]

1. d4 {[%clk 0:02:50]}  d5 {[%clk 0:02:57]} 2. c4 {[%clk 0:02:49]}  e6 {[%clk 0:02:56]} 3. Nc3 {[%clk 0:02:46]}  Be7 {[%clk 0:02:51]} 4. cxd5 {[%clk 0:02:45]}  exd5 {[%clk 0:02:52]} 5. Bf4 {[%clk 0:02:45]}  Nf6 {[%clk 0:02:45]} 6. e3 {[%clk 0:02:45]}  c6 {[%clk 0:02:41]} 7. Be2 {[%clk 0:02:34]}  a5 {[%clk 0:02:34]} 8. h3 {[%clk 0:02:23]}  Na6 {[%clk 0:02:27]} 9. Nf3 {[%clk 0:02:18]}  O-O {[%clk 0:02:24]} 10. Qc2 {[%clk 0:02:04]}  Re8 {[%clk 0:02:18]} 11. O-O {[%clk 0:02:01]}  Bd6 {[%clk 0:01:47]} 12. Bg5 {[%clk 0:01:54]}  Nb4 {[%clk 0:01:31]} 13. Qd2 {[%clk 0:01:46]}  Bf5 {[%clk 0:01:26]} 14. a3 {[%clk 0:01:46]}  Na6 {[%clk 0:01:25]} 15. Rac1 {[%clk 0:01:29]}  h6 {[%clk 0:01:17]} 16. Bh4 {[%clk 0:01:29]}  g5 {[%clk 0:00:52]} 17. Bg3 {[%clk 0:01:26]}  Bxg3 {[%clk 0:00:52]} 18. fxg3 {[%clk 0:01:27]}  Ne4 {[%clk 0:00:51]} 19. Nxe4 {[%clk 0:01:26]}  Bxe4 {[%clk 0:00:52]} 20. Ne5 {[%clk 0:01:24]}  f6 {[%clk 0:00:23]} 21. Nxc6 {[%clk 0:01:19]}  bxc6 {[%clk 0:00:19]} 22. Rxc6 {[%clk 0:01:20]}  Nb8 {[%clk 0:00:09]} 23. Rcxf6 {[%clk 0:01:19]}  Nd7 {[%clk 0:00:09]} 24. Rxh6 {[%clk 0:01:19]}  Kg7 {[%clk 0:00:09]} 25. Rc6 {[%clk 0:01:14]}  Rf8 {[%clk 0:00:09]} 26. Rxf8 {[%clk 0:01:11]}  Qxf8 {[%clk 0:00:05]} 27. Rc7 {[%clk 0:00:59]}  Qd6 {[%clk 0:00:05]} 28. Qc3 {[%clk 0:01:00]}  Kh6 {[%clk 0:00:01]} 29. Rc6 {[%clk 0:00:58]} 1-0

[Event "December 19 Early 2023"]
[Site "https://www.chess.com"]
[Date "2023.12.19"]
[Round "2"]
[White "Masague Artero, Guerau"]
[Black "Praggnanandhaa R"]
[Result "1-0"]
[Board "22"]
[TimeControl "180+1"]
[WhiteFideId "32098952"]
[BlackFideId "25059530"]
[WhiteElo "2253"]
[BlackElo "2665"]
[WhiteTeam "ESP"]
[BlackTeam "IND"]
[WhiteClock "0:00:03"]
[BlackClock "0:00:00"]

1. Nf3 {[%clk 0:02:55]}  d5 {[%clk 0:02:58]} 2. e3 {[%clk 0:02:55]}  Nf6 {[%clk 0:02:54]} 3. d4 {[%clk 0:02:55]}  c5 {[%clk 0:02:53]} 4. Bb5+ {[%clk 0:02:51]}  Bd7 {[%clk 0:02:52]} 5. a4 {[%clk 0:02:51]}  e6 {[%clk 0:02:51]} 6. O-O {[%clk 0:02:50]}  a6 {[%clk 0:02:51]} 7. Bxd7+ {[%clk 0:02:37]}  Qxd7 {[%clk 0:02:52]} 8. b3 {[%clk 0:02:26]}  Nc6 {[%clk 0:02:51]} 9. Bb2 {[%clk 0:02:25]}  cxd4 {[%clk 0:02:44]} 10. Nxd4 {[%clk 0:02:25]}  Be7 {[%clk 0:02:44]} 11. Nd2 {[%clk 0:02:24]}  O-O {[%clk 0:02:44]} 12. Qe2 {[%clk 0:02:23]}  Rac8 {[%clk 0:02:42]} 13. c4 {[%clk 0:02:18]}  Rfd8 {[%clk 0:02:33]} 14. Rfd1 {[%clk 0:02:17]}  Qe8 {[%clk 0:02:15]} 15. h3 {[%clk 0:02:07]}  Nb4 {[%clk 0:01:58]} 16. Rac1 {[%clk 0:01:54]}  Bc5 {[%clk 0:01:48]} 17. N4f3 {[%clk 0:01:47]}  Qe7 {[%clk 0:01:44]} 18. Ne5 {[%clk 0:01:34]}  h6 {[%clk 0:01:41]} 19. Ng4 {[%clk 0:01:32]}  Nxg4 {[%clk 0:01:20]} 20. Qxg4 {[%clk 0:01:33]}  e5 {[%clk 0:01:21]} 21. Nf3 {[%clk 0:01:26]}  Bd6 {[%clk 0:01:03]} 22. Nh4 {[%clk 0:00:52]}  Qf6 {[%clk 0:00:17]} 23. cxd5 {[%clk 0:00:32]}  Rxc1 {[%clk 0:00:17]} 24. Rxc1 {[%clk 0:00:33]}  Nd3 {[%clk 0:00:15]} 25. Rc2 {[%clk 0:00:20]}  Nxb2 {[%clk 0:00:11]} 26. Rxb2 {[%clk 0:00:21]}  e4 {[%clk 0:00:11]} 27. Rb1 {[%clk 0:00:17]}  Qe5 {[%clk 0:00:10]} 28. g3 {[%clk 0:00:16]}  Bf8 {[%clk 0:00:06]} 29. Nf5 {[%clk 0:00:13]}  g6 {[%clk 0:00:07]} 30. Nd4 {[%clk 0:00:13]}  Qxd5 {[%clk 0:00:07]} 31. Rc1 {[%clk 0:00:13]}  Bg7 {[%clk 0:00:07]} 32. Rd1 {[%clk 0:00:07]}  b5 {[%clk 0:00:03]} 33. axb5 {[%clk 0:00:05]}  axb5 {[%clk 0:00:04]} 34. h4 {[%clk 0:00:06]}  h5 {[%clk 0:00:04]} 35. Qe2 {[%clk 0:00:06]}  b4 {[%clk 0:00:05]} 36. Qd2 {[%clk 0:00:06]}  Qc5 {[%clk 0:00:03]} 37. Rc1 {[%clk 0:00:04]}  Qb6 {[%clk 0:00:04]} 38. Rc4 {[%clk 0:00:05]}  Bf8 {[%clk 0:00:01]} 39. Kg2 {[%clk 0:00:03]}  Qf6 {[%clk 0:00:02]} 40. Qc2 {[%clk 0:00:03]}  Re8 {[%clk 0:00:00]} 41. Rc8 {[%clk 0:00:03]} 1-0

[Event "December 19 Early 2023"]
[Site "https://www.chess.com"]
[Date "2023.12.19"]
[Round "2"]
[White "Hajiyev, Kanan"]
[Black "Bortnyk, Olexandr"]
[Result "0-1"]
[Board "25"]
[TimeControl "180+1"]
[WhiteFideId "13404148"]
[BlackFideId "14120828"]
[WhiteElo "2102"]
[BlackElo "2731"]
[WhiteTeam "AZE"]
[BlackTeam "UKR"]
[WhiteClock "0:00:02"]
[BlackClock "0:01:47"]

1. d4 {[%clk 0:03:00]}  Nf6 {[%clk 0:02:57]} 2. Nf3 {[%clk 0:03:01]}  g6 {[%clk 0:02:51]} 3. g3 {[%clk 0:03:02]}  Bg7 {[%clk 0:02:52]} 4. Bg2 {[%clk 0:03:02]}  O-O {[%clk 0:02:52]} 5. O-O {[%clk 0:03:03]}  d6 {[%clk 0:02:53]} 6. b3 {[%clk 0:03:03]}  a5 {[%clk 0:02:51]} 7. c4 {[%clk 0:02:56]}  Bf5 {[%clk 0:02:49]} 8. Nc3 {[%clk 0:02:54]}  Ne4 {[%clk 0:02:47]} 9. Bb2 {[%clk 0:02:52]}  Nxc3 {[%clk 0:02:41]} 10. Bxc3 {[%clk 0:02:52]}  Be4 {[%clk 0:02:41]} 11. Qd2 {[%clk 0:02:50]}  a4 {[%clk 0:02:41]} 12. d5 {[%clk 0:02:40]}  Bxc3 {[%clk 0:02:34]} 13. Qxc3 {[%clk 0:02:41]}  Bxf3 {[%clk 0:02:30]} 14. exf3 {[%clk 0:02:36]}  c5 {[%clk 0:02:29]} 15. h4 {[%clk 0:02:30]}  Nd7 {[%clk 0:02:22]} 16. f4 {[%clk 0:02:26]}  Nf6 {[%clk 0:02:21]} 17. Bf3 {[%clk 0:02:22]}  Qa5 {[%clk 0:02:16]} 18. Qc2 {[%clk 0:02:14]}  axb3 {[%clk 0:02:15]} 19. axb3 {[%clk 0:02:10]}  Qxa1 {[%clk 0:02:16]} 20. Rxa1 {[%clk 0:02:11]}  Rxa1+ {[%clk 0:02:17]} 21. Kg2 {[%clk 0:02:11]}  Rfa8 {[%clk 0:02:14]} 22. Qe2 {[%clk 0:01:52]}  Kf8 {[%clk 0:02:14]} 23. f5 {[%clk 0:01:52]}  gxf5 {[%clk 0:02:08]} 24. Qe3 {[%clk 0:01:50]}  R8a2 {[%clk 0:02:02]} 25. Qh6+ {[%clk 0:01:38]}  Ke8 {[%clk 0:02:00]} 26. Qf4 {[%clk 0:01:20]}  Rb2 {[%clk 0:01:59]} 27. Qxf5 {[%clk 0:01:17]}  Kd8 {[%clk 0:02:00]} 28. g4 {[%clk 0:01:08]}  Raa2 {[%clk 0:01:59]} 29. g5 {[%clk 0:00:41]}  Rxf2+ {[%clk 0:01:59]} 30. Kg3 {[%clk 0:00:42]}  Nd7 {[%clk 0:01:56]} 31. Qxf7 {[%clk 0:00:24]}  Ne5 {[%clk 0:01:56]} 32. Qg8+ {[%clk 0:00:22]}  Kc7 {[%clk 0:01:54]} 33. Be4 {[%clk 0:00:19]}  Rfb2 {[%clk 0:01:46]} 34. Qxh7 {[%clk 0:00:10]}  Rxb3+ {[%clk 0:01:47]} 35. Kf4 {[%clk 0:00:01]}  Rf2+ {[%clk 0:01:46]} 36. Bf3 {[%clk 0:00:02]}  Rfxf3+ {[%clk 0:01:46]} 37. Ke4 {[%clk 0:00:02]}  Rbe3# {[%clk 0:01:47]} 0-1

[Event "December 19 Early 2023"]
[Site "https://www.chess.com"]
[Date "2023.12.19"]
[Round "2"]
[White "Drygalov, Sergey"]
[Black "Saravana, Krishnan P."]
[Result "1-0"]
[Board "26"]
[TimeControl "180+1"]
[WhiteFideId "24171743"]
[BlackFideId "5018382"]
[WhiteElo "2504"]
[BlackElo "2167"]
[WhiteTeam "RUS"]
[BlackTeam "IND"]
[WhiteClock "0:00:58"]
[BlackClock "0:00:08"]

1. d4 {[%clk 0:03:00]}  Nf6 {[%clk 0:02:59]} 2. c4 {[%clk 0:03:01]}  e6 {[%clk 0:02:59]} 3. Nf3 {[%clk 0:03:02]}  d5 {[%clk 0:02:56]} 4. Nc3 {[%clk 0:03:02]}  c6 {[%clk 0:02:56]} 5. Bg5 {[%clk 0:03:01]}  Nbd7 {[%clk 0:02:56]} 6. e3 {[%clk 0:03:01]}  Qa5 {[%clk 0:02:56]} 7. cxd5 {[%clk 0:03:00]}  Nxd5 {[%clk 0:02:51]} 8. Qd2 {[%clk 0:03:01]}  Bb4 {[%clk 0:02:51]} 9. Rc1 {[%clk 0:03:01]}  b6 {[%clk 0:02:48]} 10. e4 {[%clk 0:02:52]}  N5f6 {[%clk 0:02:45]} 11. Bd3 {[%clk 0:02:50]}  Ba6 {[%clk 0:02:44]} 12. e5 {[%clk 0:02:50]}  Nd5 {[%clk 0:02:37]} 13. O-O {[%clk 0:02:47]}  h6 {[%clk 0:02:29]} 14. Bh4 {[%clk 0:02:46]}  Bxd3 {[%clk 0:02:13]} 15. Qxd3 {[%clk 0:02:46]}  Bxc3 {[%clk 0:02:12]} 16. bxc3 {[%clk 0:02:46]}  Nf4 {[%clk 0:02:10]} 17. Qe4 {[%clk 0:02:44]}  g5 {[%clk 0:02:09]} 18. Bg3 {[%clk 0:02:41]}  Qd5 {[%clk 0:02:06]} 19. Qe3 {[%clk 0:02:39]}  Nxg2 {[%clk 0:01:59]} 20. Kxg2 {[%clk 0:02:34]}  g4 {[%clk 0:01:59]} 21. c4 {[%clk 0:02:35]}  gxf3+ {[%clk 0:01:57]} 22. Qxf3 {[%clk 0:02:36]}  Qxf3+ {[%clk 0:01:52]} 23. Kxf3 {[%clk 0:02:36]}  h5 {[%clk 0:01:49]} 24. Bf4 {[%clk 0:02:30]}  Nf8 {[%clk 0:01:43]} 25. Ke4 {[%clk 0:02:14]}  Rd8 {[%clk 0:01:42]} 26. Bg5 {[%clk 0:02:13]}  Rd7 {[%clk 0:01:41]} 27. Bf6 {[%clk 0:02:11]}  Rg8 {[%clk 0:01:39]} 28. Rg1 {[%clk 0:02:11]}  Ng6 {[%clk 0:01:28]} 29. a4 {[%clk 0:02:11]}  Kf8 {[%clk 0:01:11]} 30. Rb1 {[%clk 0:02:08]}  Ne7 {[%clk 0:01:06]} 31. Rxg8+ {[%clk 0:02:06]}  Nxg8 {[%clk 0:01:04]} 32. a5 {[%clk 0:02:04]}  Rb7 {[%clk 0:00:57]} 33. Bd8 {[%clk 0:01:45]}  Ke8 {[%clk 0:00:50]} 34. a6 {[%clk 0:01:23]}  Rb8 {[%clk 0:00:41]} 35. Bg5 {[%clk 0:01:22]}  Ne7 {[%clk 0:00:39]} 36. f4 {[%clk 0:01:10]}  Nf5 {[%clk 0:00:34]} 37. d5 {[%clk 0:01:09]}  cxd5+ {[%clk 0:00:33]} 38. cxd5 {[%clk 0:01:09]}  Rc8 {[%clk 0:00:33]} 39. d6 {[%clk 0:01:08]}  Rc4+ {[%clk 0:00:30]} 40. Kd3 {[%clk 0:01:07]}  Rd4+ {[%clk 0:00:26]} 41. Ke2 {[%clk 0:01:07]}  Rc4 {[%clk 0:00:22]} 42. Bf6 {[%clk 0:01:02]}  Kd7 {[%clk 0:00:19]} 43. Rg1 {[%clk 0:01:02]}  Rxf4 {[%clk 0:00:19]} 44. Rg8 {[%clk 0:01:01]}  Nxd6 {[%clk 0:00:18]} 45. Rd8+ {[%clk 0:01:01]}  Kc7 {[%clk 0:00:16]} 46. exd6+ {[%clk 0:00:59]}  Kc6 {[%clk 0:00:16]} 47. Be7 {[%clk 0:00:59]}  Rd4 {[%clk 0:00:15]} 48. Rc8+ {[%clk 0:00:58]}  Kb5 {[%clk 0:00:08]} 49. Rc7 {[%clk 0:00:58]} 1-0

[Event "December 19 Early 2023"]
[Site "https://www.chess.com"]
[Date "2023.12.19"]
[Round "2"]
[White "Melian, Juan Sebastian"]
[Black "Movahed, Sina"]
[Result "0-1"]
[Board "27"]
[TimeControl "180+1"]
[WhiteFideId "3706575"]
[BlackFideId "42520835"]
[WhiteElo "2098"]
[BlackElo "2341"]
[WhiteTeam "PAR"]
[BlackTeam "IRI"]
[WhiteClock "0:00:03"]
[BlackClock "0:00:12"]

1. e4 {[%clk 0:02:30]}  c5 {[%clk 0:02:58]} 2. b3 {[%clk 0:02:29]}  g6 {[%clk 0:02:53]} 3. Bb2 {[%clk 0:02:28]}  Nf6 {[%clk 0:02:53]} 4. e5 {[%clk 0:02:28]}  Nd5 {[%clk 0:02:53]} 5. Nc3 {[%clk 0:02:29]}  Nxc3 {[%clk 0:02:51]} 6. Bxc3 {[%clk 0:02:30]}  Bg7 {[%clk 0:02:52]} 7. h4 {[%clk 0:02:30]}  Nc6 {[%clk 0:02:51]} 8. h5 {[%clk 0:02:31]}  Bxe5 {[%clk 0:02:33]} 9. Bxe5 {[%clk 0:02:31]}  Nxe5 {[%clk 0:02:33]} 10. f4 {[%clk 0:02:31]}  Nc6 {[%clk 0:02:32]} 11. hxg6 {[%clk 0:02:32]}  fxg6 {[%clk 0:02:33]} 12. Bd3 {[%clk 0:02:32]}  O-O {[%clk 0:02:02]} 13. Qg4 {[%clk 0:02:30]}  Qe8 {[%clk 0:01:41]} 14. Nf3 {[%clk 0:02:29]}  d5 {[%clk 0:01:19]} 15. Qh4 {[%clk 0:02:29]}  h5 {[%clk 0:01:17]} 16. Qg5 {[%clk 0:02:20]}  Bf5 {[%clk 0:01:15]} 17. O-O-O {[%clk 0:01:44]}  Qf7 {[%clk 0:00:40]} 18. Rxh5 {[%clk 0:01:20]}  Qg7 {[%clk 0:00:37]} 19. c3 {[%clk 0:00:47]}  gxh5 {[%clk 0:00:31]} 20. Bxf5 {[%clk 0:00:45]}  Qxg5 {[%clk 0:00:27]} 21. Be6+ {[%clk 0:00:45]}  Kg7 {[%clk 0:00:28]} 22. Nxg5 {[%clk 0:00:40]}  Rxf4 {[%clk 0:00:20]} 23. Bxd5 {[%clk 0:00:39]}  Rf5 {[%clk 0:00:21]} 24. Ne6+ {[%clk 0:00:35]}  Kf6 {[%clk 0:00:21]} 25. c4 {[%clk 0:00:28]}  Nb4 {[%clk 0:00:17]} 26. Bxb7 {[%clk 0:00:14]}  Rb8 {[%clk 0:00:16]} 27. Bd5 {[%clk 0:00:07]}  Nxd5 {[%clk 0:00:15]} 28. cxd5 {[%clk 0:00:08]}  Rxd5 {[%clk 0:00:16]} 29. Nf4 {[%clk 0:00:09]}  Rf5 {[%clk 0:00:16]} 30. Nd3 {[%clk 0:00:08]}  Rc8 {[%clk 0:00:15]} 31. Nb2 {[%clk 0:00:08]}  Rf2 {[%clk 0:00:15]} 32. Nc4 {[%clk 0:00:08]}  Rxg2 {[%clk 0:00:15]} 33. Rf1+ {[%clk 0:00:08]}  Kg7 {[%clk 0:00:16]} 34. Ne5 {[%clk 0:00:09]}  Rf8 {[%clk 0:00:15]} 35. Rh1 {[%clk 0:00:09]}  Rf5 {[%clk 0:00:16]} 36. Nc4 {[%clk 0:00:09]}  Rg3 {[%clk 0:00:12]} 37. Ne3 {[%clk 0:00:09]}  Rfg5 {[%clk 0:00:12]} 38. Kc2 {[%clk 0:00:09]}  Kg6 {[%clk 0:00:13]} 39. Kd3 {[%clk 0:00:09]}  Rf3 {[%clk 0:00:13]} 40. Ke4 {[%clk 0:00:09]}  Rf6 {[%clk 0:00:13]} 41. a3 {[%clk 0:00:08]}  Re6+ {[%clk 0:00:13]} 42. Kf4 {[%clk 0:00:09]}  Rd6 {[%clk 0:00:13]} 43. Ng2 {[%clk 0:00:03]}  Rxg2 {[%clk 0:00:12]} 0-1

[Event "December 19 Early 2023"]
[Site "https://www.chess.com"]
[Date "2023.12.19"]
[Round "2"]
[White "Kokoszczynski, Jan"]
[Black "Svane, Frederik"]
[Result "0-1"]
[Board "29"]
[TimeControl "180+1"]
[WhiteFideId "1174460"]
[BlackFideId "12923044"]
[WhiteElo "2266"]
[BlackElo "2502"]
[WhiteTeam "POL"]
[BlackTeam "GER"]
[WhiteClock "0:00:00"]
[BlackClock "0:00:08"]

1. e4 {[%clk 0:03:00]}  c5 {[%clk 0:02:59]} 2. Nf3 {[%clk 0:03:00]}  e6 {[%clk 0:02:59]} 3. g3 {[%clk 0:02:48]}  Nc6 {[%clk 0:02:58]} 4. Bg2 {[%clk 0:02:48]}  Nf6 {[%clk 0:02:59]} 5. Qe2 {[%clk 0:02:44]}  e5 {[%clk 0:02:57]} 6. O-O {[%clk 0:02:41]}  Be7 {[%clk 0:02:58]} 7. d3 {[%clk 0:02:35]}  O-O {[%clk 0:02:58]} 8. Nc3 {[%clk 0:02:31]}  d6 {[%clk 0:02:58]} 9. Nd5 {[%clk 0:02:29]}  h6 {[%clk 0:02:41]} 10. c3 {[%clk 0:02:22]}  Re8 {[%clk 0:02:41]} 11. Nd2 {[%clk 0:02:12]}  Nxd5 {[%clk 0:02:39]} 12. exd5 {[%clk 0:02:13]}  Nb8 {[%clk 0:02:40]} 13. a4 {[%clk 0:02:10]}  Bf5 {[%clk 0:02:26]} 14. Nc4 {[%clk 0:02:05]}  Nd7 {[%clk 0:02:26]} 15. a5 {[%clk 0:02:00]}  Bf8 {[%clk 0:02:26]} 16. b4 {[%clk 0:01:58]}  cxb4 {[%clk 0:02:25]} 17. cxb4 {[%clk 0:01:59]}  b5 {[%clk 0:02:11]} 18. axb6 {[%clk 0:01:55]}  axb6 {[%clk 0:02:12]} 19. Be3 {[%clk 0:01:53]}  Qc7 {[%clk 0:02:08]} 20. Rfc1 {[%clk 0:01:20]}  Rxa1 {[%clk 0:02:07]} 21. Rxa1 {[%clk 0:01:20]}  b5 {[%clk 0:02:08]} 22. Na5 {[%clk 0:01:07]}  Qc3 {[%clk 0:02:07]} 23. Rc1 {[%clk 0:01:04]}  Qxb4 {[%clk 0:02:04]} 24. Nc6 {[%clk 0:01:04]}  Qa3 {[%clk 0:02:05]} 25. Be4 {[%clk 0:01:02]}  Bxe4 {[%clk 0:01:58]} 26. dxe4 {[%clk 0:01:03]}  b4 {[%clk 0:01:39]} 27. Rb1 {[%clk 0:00:56]}  Ra8 {[%clk 0:00:54]} 28. Rxb4 {[%clk 0:00:53]}  Qc3 {[%clk 0:00:53]} 29. Rb1 {[%clk 0:00:50]}  g6 {[%clk 0:00:47]} 30. Kg2 {[%clk 0:00:49]}  h5 {[%clk 0:00:47]} 31. Rb7 {[%clk 0:00:41]}  Nf6 {[%clk 0:00:40]} 32. Qf3 {[%clk 0:00:41]}  Bg7 {[%clk 0:00:34]} 33. Ba7 {[%clk 0:00:17]}  Qc2 {[%clk 0:00:30]} 34. Rb4 {[%clk 0:00:15]}  Qa2 {[%clk 0:00:27]} 35. Rb7 {[%clk 0:00:11]}  Qc2 {[%clk 0:00:19]} 36. Rb4 {[%clk 0:00:10]}  Ng4 {[%clk 0:00:11]} 37. h3 {[%clk 0:00:06]}  Nh6 {[%clk 0:00:10]} 38. Rb7 {[%clk 0:00:05]}  Rf8 {[%clk 0:00:07]} 39. Ne7+ {[%clk 0:00:04]}  Kh8 {[%clk 0:00:07]} 40. Nc6 {[%clk 0:00:04]}  f5 {[%clk 0:00:07]} 41. exf5 {[%clk 0:00:02]}  Nxf5 {[%clk 0:00:08]} 42. Qe2 {[%clk 0:00:00]}  Qxe2 {[%clk 0:00:08]} 0-1

[Event "December 19 Early 2023"]
[Site "https://www.chess.com"]
[Date "2023.12.19"]
[Round "2"]
[White "Grandelius, Nils"]
[Black "Sipila, Vilka"]
[Result "1-0"]
[Board "30"]
[TimeControl "180+1"]
[WhiteFideId "1710400"]
[BlackFideId "505455"]
[WhiteElo "2573"]
[BlackElo "2343"]
[WhiteTeam "SWE"]
[BlackTeam "FIN"]
[WhiteClock "0:00:40"]
[BlackClock "0:00:04"]

1. d4 {[%clk 0:03:00]}  f5 {[%clk 0:02:59]} 2. c4 {[%clk 0:02:58]}  Nf6 {[%clk 0:02:59]} 3. Nc3 {[%clk 0:02:58]}  g6 {[%clk 0:02:59]} 4. h4 {[%clk 0:02:57]}  Rg8 {[%clk 0:02:47]} 5. Nf3 {[%clk 0:02:43]}  d6 {[%clk 0:02:32]} 6. Bf4 {[%clk 0:02:38]}  Nc6 {[%clk 0:02:30]} 7. d5 {[%clk 0:02:34]}  Nb8 {[%clk 0:02:20]} 8. e3 {[%clk 0:02:35]}  e5 {[%clk 0:02:17]} 9. dxe6 {[%clk 0:02:35]}  Bxe6 {[%clk 0:02:17]} 10. Qb3 {[%clk 0:02:06]}  b6 {[%clk 0:01:43]} 11. Ng5 {[%clk 0:02:02]}  Qe7 {[%clk 0:01:41]} 12. Nxe6 {[%clk 0:01:51]}  Qxe6 {[%clk 0:01:39]} 13. Nd5 {[%clk 0:01:52]}  Qf7 {[%clk 0:01:23]} 14. O-O-O {[%clk 0:01:39]}  Bg7 {[%clk 0:01:21]} 15. Qa4+ {[%clk 0:01:31]}  Kd8 {[%clk 0:01:06]} 16. Be2 {[%clk 0:01:25]}  Ne4 {[%clk 0:01:04]} 17. Bf3 {[%clk 0:01:21]}  h6 {[%clk 0:00:17]} 18. Kb1 {[%clk 0:01:07]}  Nd7 {[%clk 0:00:16]} 19. Bxe4 {[%clk 0:00:53]}  fxe4 {[%clk 0:00:14]} 20. Nxc7 {[%clk 0:00:41]}  Kxc7 {[%clk 0:00:13]} 21. Rxd6 {[%clk 0:00:42]}  Ne5 {[%clk 0:00:12]} 22. Bxe5 {[%clk 0:00:38]}  Bxe5 {[%clk 0:00:11]} 23. Qc6+ {[%clk 0:00:39]}  Kb8 {[%clk 0:00:11]} 24. Rd7 {[%clk 0:00:39]}  Qxd7 {[%clk 0:00:04]} 25. Qxd7 {[%clk 0:00:40]} 1-0

[Event "December 19 Early 2023"]
[Site "https://www.chess.com"]
[Date "2023.12.19"]
[Round "2"]
[White "Galchenko, Matvey"]
[Black "Fishchuk, Vladyslav"]
[Result "1-0"]
[Board "31"]
[TimeControl "180+1"]
[WhiteFideId "24175480"]
[BlackFideId "34122117"]
[WhiteElo "2424"]
[BlackElo "2055"]
[WhiteTeam "FID"]
[BlackTeam "UKR"]
[WhiteClock "0:00:24"]
[BlackClock "0:00:06"]

1. e4 {[%clk 0:02:59]}  c5 {[%clk 0:02:54]} 2. Nf3 {[%clk 0:02:51]}  Nf6 {[%clk 0:02:54]} 3. e5 {[%clk 0:02:49]}  Nd5 {[%clk 0:02:54]} 4. c3 {[%clk 0:02:49]}  Nc6 {[%clk 0:02:52]} 5. Bc4 {[%clk 0:02:48]}  Nb6 {[%clk 0:02:52]} 6. Bb3 {[%clk 0:02:49]}  d5 {[%clk 0:02:52]} 7. exd6 {[%clk 0:02:49]}  Qxd6 {[%clk 0:02:52]} 8. O-O {[%clk 0:02:49]}  Be6 {[%clk 0:02:52]} 9. Bxe6 {[%clk 0:02:48]}  Qxe6 {[%clk 0:02:53]} 10. a4 {[%clk 0:02:49]}  Qd7 {[%clk 0:02:52]} 11. a5 {[%clk 0:02:49]}  Nd5 {[%clk 0:02:52]} 12. d4 {[%clk 0:02:49]}  cxd4 {[%clk 0:02:50]} 13. Nxd4 {[%clk 0:02:50]}  a6 {[%clk 0:02:43]} 14. Re1 {[%clk 0:02:44]}  e6 {[%clk 0:02:41]} 15. Qa4 {[%clk 0:02:28]}  Rc8 {[%clk 0:02:19]} 16. Nd2 {[%clk 0:02:26]}  Be7 {[%clk 0:02:17]} 17. N2f3 {[%clk 0:02:23]}  O-O {[%clk 0:02:11]} 18. Nxc6 {[%clk 0:02:14]}  Qxc6 {[%clk 0:02:10]} 19. Qg4 {[%clk 0:02:15]}  Bf6 {[%clk 0:02:07]} 20. Bg5 {[%clk 0:02:06]}  Bxg5 {[%clk 0:02:00]} 21. Nxg5 {[%clk 0:02:07]}  h6 {[%clk 0:01:54]} 22. Nf3 {[%clk 0:02:03]}  Qb5 {[%clk 0:01:46]} 23. Ra2 {[%clk 0:01:26]}  Qc4 {[%clk 0:01:14]} 24. Qxc4 {[%clk 0:01:19]}  Rxc4 {[%clk 0:01:15]} 25. Ne5 {[%clk 0:01:19]}  Rcc8 {[%clk 0:01:10]} 26. Kf1 {[%clk 0:01:18]}  Rfd8 {[%clk 0:01:09]} 27. Raa1 {[%clk 0:01:12]}  f6 {[%clk 0:01:00]} 28. Nf3 {[%clk 0:01:04]}  e5 {[%clk 0:01:00]} 29. Red1 {[%clk 0:01:05]}  Kf7 {[%clk 0:00:57]} 30. g3 {[%clk 0:01:05]}  Nc7 {[%clk 0:00:45]} 31. Ke2 {[%clk 0:01:04]}  Ne6 {[%clk 0:00:45]} 32. Rxd8 {[%clk 0:00:50]}  Rxd8 {[%clk 0:00:45]} 33. Ra4 {[%clk 0:00:51]}  Nc5 {[%clk 0:00:29]} 34. Rb4 {[%clk 0:00:48]}  Ke6 {[%clk 0:00:28]} 35. Nd2 {[%clk 0:00:48]}  Rd7 {[%clk 0:00:21]} 36. Nc4 {[%clk 0:00:47]}  Nd3 {[%clk 0:00:20]} 37. Rb6+ {[%clk 0:00:46]}  Kf5 {[%clk 0:00:18]} 38. Nd6+ {[%clk 0:00:37]}  Ke6 {[%clk 0:00:15]} 39. Nxb7+ {[%clk 0:00:25]}  Kf5 {[%clk 0:00:14]} 40. Nd6+ {[%clk 0:00:24]}  Kg4 {[%clk 0:00:06]} 41. Kxd3 {[%clk 0:00:24]} 1-0

[Event "December 19 Early 2023"]
[Site "https://www.chess.com"]
[Date "2023.12.19"]
[Round "2"]
[White "Manukyan, Sargis A."]
[Black "Ter-Sahakyan, Samvel"]
[Result "0-1"]
[Board "34"]
[TimeControl "180+1"]
[WhiteFideId "13303970"]
[BlackFideId "13302531"]
[WhiteElo "2186"]
[BlackElo "2556"]
[WhiteTeam "ARM"]
[BlackTeam "ARM"]
[WhiteClock "0:00:05"]
[BlackClock "0:01:14"]

1. d4 {[%clk 0:03:00]}  Nf6 {[%clk 0:03:00]} 2. c4 {[%clk 0:03:01]}  e6 {[%clk 0:03:00]} 3. Nc3 {[%clk 0:03:01]}  d5 {[%clk 0:03:00]} 4. cxd5 {[%clk 0:03:01]}  exd5 {[%clk 0:03:01]} 5. Bg5 {[%clk 0:03:00]}  Bb4 {[%clk 0:03:00]} 6. e3 {[%clk 0:03:00]}  h6 {[%clk 0:03:00]} 7. Bh4 {[%clk 0:03:01]}  g5 {[%clk 0:03:00]} 8. Bg3 {[%clk 0:03:01]}  Ne4 {[%clk 0:03:00]} 9. Ne2 {[%clk 0:02:53]}  h5 {[%clk 0:02:59]} 10. f3 {[%clk 0:02:52]}  Nxg3 {[%clk 0:02:56]} 11. hxg3 {[%clk 0:02:53]}  Be6 {[%clk 0:02:50]} 12. a3 {[%clk 0:02:49]}  Bd6 {[%clk 0:02:43]} 13. e4 {[%clk 0:02:36]}  c6 {[%clk 0:02:40]} 14. exd5 {[%clk 0:02:21]}  cxd5 {[%clk 0:02:40]} 15. Qb3 {[%clk 0:02:16]}  Nc6 {[%clk 0:02:28]} 16. Qxb7 {[%clk 0:02:08]}  Na5 {[%clk 0:02:28]} 17. Qb5+ {[%clk 0:02:08]}  Kf8 {[%clk 0:02:29]} 18. Qd3 {[%clk 0:01:51]}  Rb8 {[%clk 0:02:28]} 19. b4 {[%clk 0:01:49]}  Nc4 {[%clk 0:02:28]} 20. Kf2 {[%clk 0:01:42]}  a5 {[%clk 0:02:27]} 21. b5 {[%clk 0:01:41]}  Bxa3 {[%clk 0:02:22]} 22. f4 {[%clk 0:01:25]}  Bb4 {[%clk 0:02:19]} 23. f5 {[%clk 0:01:24]}  Qf6 {[%clk 0:02:19]} 24. g4 {[%clk 0:01:20]}  Nb6 {[%clk 0:01:55]} 25. Ng3 {[%clk 0:01:11]}  h4 {[%clk 0:01:50]} 26. Kg1 {[%clk 0:00:36]}  hxg3 {[%clk 0:01:44]} 27. Rxh8+ {[%clk 0:00:32]}  Qxh8 {[%clk 0:01:43]} 28. Qxg3 {[%clk 0:00:32]}  Rc8 {[%clk 0:01:23]} 29. fxe6 {[%clk 0:00:32]}  Qxd4+ {[%clk 0:01:16]} 30. Kh1 {[%clk 0:00:26]}  Kg7 {[%clk 0:01:16]} 31. Qh3 {[%clk 0:00:13]}  Rh8 {[%clk 0:01:15]} 32. Qxh8+ {[%clk 0:00:12]}  Kxh8 {[%clk 0:01:15]} 33. exf7 {[%clk 0:00:10]}  Qxc3 {[%clk 0:01:14]} 34. Rd1 {[%clk 0:00:05]}  Qf6 {[%clk 0:01:14]} 0-1